[Event "*** Titled Tuesday Blitz"]
[Site "Chess.com"]
[Date "2020.04.07"]
[Round "1"]
[White "Mezioudamina88"]
[Black "florianschwabeneder"]
[Result "1-0"]
[WhiteElo "2097"]
[BlackElo "2507"]
[TimeControl "180+1"]
[EndTime "13:08:08 PDT"]
[Termination "Mezioudamina88 won on time"]

1. e4 {[%clk 0:02:09.8]} 1... c5 {[%clk 0:02:57.9]} 2. Nc3 {[%clk 0:02:09.4]}
2... Nc6 {[%clk 0:02:57.6]} 3. f4 {[%clk 0:02:09.7]} 3... g6 {[%clk 0:02:54.9]}
4. Nf3 {[%clk 0:02:09.9]} 4... Bg7 {[%clk 0:02:54.6]} 5. Bc4 {[%clk 0:02:03.3]}
5... e6 {[%clk 0:02:54]} 6. O-O {[%clk 0:02:01.5]} 6... Nge7 {[%clk 0:02:53.4]}
7. Qe1 {[%clk 0:01:54.8]} 7... O-O {[%clk 0:02:51.2]} 8. d3 {[%clk 0:01:50.5]}
8... d5 {[%clk 0:02:49.4]} 9. Bb3 {[%clk 0:01:49.9]} 9... b5 {[%clk 0:02:15.1]}
10. Nxb5 {[%clk 0:00:57.7]} 10... Qb6 {[%clk 0:02:14.4]} 11. c4 {[%clk
0:00:52.9]} 11... dxc4 {[%clk 0:02:10.3]} 12. dxc4 {[%clk 0:00:50.9]} 12... Na5
{[%clk 0:02:05.6]} 13. Ne5 {[%clk 0:00:43.2]} 13... Nxb3 {[%clk 0:01:49.7]} 14.
axb3 {[%clk 0:00:44.1]} 14... a6 {[%clk 0:01:49.4]} 15. Nc3 {[%clk 0:00:34]}
15... Qxb3 {[%clk 0:01:47.3]} 16. Qh4 {[%clk 0:00:31.4]} 16... Qb7 {[%clk
0:01:40.4]} 17. Rf3 {[%clk 0:00:26.9]} 17... f6 {[%clk 0:01:06.8]} 18. Ng4
{[%clk 0:00:26.1]} 18... Nc6 {[%clk 0:00:55]} 19. Rh3 {[%clk 0:00:25]} 19... h5
{[%clk 0:00:43.9]} 20. Nf2 {[%clk 0:00:24.2]} 20... f5 {[%clk 0:00:40.8]} 21. e5
{[%clk 0:00:22.2]} 21... Nd4 {[%clk 0:00:30.3]} 22. Nd3 {[%clk 0:00:18.7]} 22...
Qc7 {[%clk 0:00:24.2]} 23. Be3 {[%clk 0:00:17.7]} 23... Bb7 {[%clk 0:00:23.4]}
24. Qf2 {[%clk 0:00:16.6]} 24... Rfd8 {[%clk 0:00:20]} 25. Rd1 {[%clk
0:00:14.9]} 25... Rd7 {[%clk 0:00:16.8]} 26. Nxc5 {[%clk 0:00:14.4]} 26... Qxc5
{[%clk 0:00:16.3]} 27. Bxd4 {[%clk 0:00:14.5]} 27... Qc6 {[%clk 0:00:15.7]} 28.
Rg3 {[%clk 0:00:10.9]} 28... Kh7 {[%clk 0:00:14.5]} 29. Rg5 {[%clk 0:00:09.7]}
29... Rad8 {[%clk 0:00:12.4]} 30. Ne2 {[%clk 0:00:09.3]} 30... Bf8 {[%clk
0:00:10.1]} 31. Qg3 {[%clk 0:00:07.8]} 31... Bc5 {[%clk 0:00:06.4]} 32. Rxg6
{[%clk 0:00:07.3]} 32... Rxd4 {[%clk 0:00:03.3]} 33. Rg7+ {[%clk 0:00:06.4]}
33... Kh8 {[%clk 0:00:03.7]} 34. Nxd4 {[%clk 0:00:04.7]} 34... h4 {[%clk
0:00:01.4]} 35. Qg6 {[%clk 0:00:02.5]} 35... Qxg2+ {[%clk 0:00:01.9]} 36. Qxg2
{[%clk 0:00:02]} 36... Bxg2 {[%clk 0:00:02.8]} 37. Rxg2 {[%clk 0:00:02.5]} 37...
Bxd4+ {[%clk 0:00:03.2]} 38. Rxd4 {[%clk 0:00:03]} 38... Rxd4 {[%clk 0:00:02.6]}
39. c5 {[%clk 0:00:03.9]} 39... Rc4 {[%clk 0:00:02.5]} 40. Rg6 {[%clk
0:00:03.6]} 40... Rxc5 {[%clk 0:00:01.9]} 41. Rxe6 {[%clk 0:00:03.8]} 41... Rc4
{[%clk 0:00:02.4]} 42. Rxa6 {[%clk 0:00:02.8]} 42... Rxf4 {[%clk 0:00:02.4]} 43.
Rf6 {[%clk 0:00:03.1]} 43... h3 {[%clk 0:00:01.6]} 44. e6 {[%clk 0:00:02.7]}
44... Kg7 {[%clk 0:00:01]} 45. Rf7+ {[%clk 0:00:02.9]} 45... Kg6 {[%clk
0:00:01.5]} 46. Rb7 {[%clk 0:00:02.4]} 46... Re4 {[%clk 0:00:01.4]} 47. e7
{[%clk 0:00:02.6]} 47... Kg5 {[%clk 0:00:01.2]} 48. e8=Q {[%clk 0:00:02.8]} 1-0

[Event "*** Titled Tuesday Blitz"]
[Site "Chess.com"]
[Date "2020.04.07"]
[Round "1"]
[White "ajkom197"]
[Black "SavelijTartakover"]
[Result "0-1"]
[WhiteElo "2290"]
[BlackElo "2623"]
[TimeControl "180+1"]
[EndTime "13:08:10 PDT"]
[Termination "SavelijTartakover won by resignation"]

1. c4 {[%clk 0:02:53.9]} 1... c6 {[%clk 0:02:58.8]} 2. e4 {[%clk 0:02:52.4]}
2... d5 {[%clk 0:02:57.9]} 3. exd5 {[%clk 0:02:52.5]} 3... cxd5 {[%clk
0:02:57.4]} 4. d4 {[%clk 0:02:52.5]} 4... Nf6 {[%clk 0:02:56.7]} 5. Nc3 {[%clk
0:02:51.4]} 5... Be6 {[%clk 0:02:55.8]} 6. Bg5 {[%clk 0:02:40.8]} 6... Nc6
{[%clk 0:02:52.4]} 7. Bxf6 {[%clk 0:02:35.6]} 7... exf6 {[%clk 0:02:50.9]} 8.
Nf3 {[%clk 0:02:30.2]} 8... Bb4 {[%clk 0:02:23.6]} 9. cxd5 {[%clk 0:02:15.7]}
9... Bxd5 {[%clk 0:02:20.7]} 10. Be2 {[%clk 0:02:15.1]} 10... O-O {[%clk
0:02:16.2]} 11. O-O {[%clk 0:02:11.4]} 11... Bxf3 {[%clk 0:02:06.9]} 12. Bxf3
{[%clk 0:02:09.2]} 12... Nxd4 {[%clk 0:02:06.8]} 13. Bxb7 {[%clk 0:02:03.8]}
13... Rb8 {[%clk 0:02:07]} 14. Bf3 {[%clk 0:02:01.7]} 14... Bd6 {[%clk
0:01:42.5]} 15. Rb1 {[%clk 0:01:56.6]} 15... Be5 {[%clk 0:01:40.1]} 16. Qd3
{[%clk 0:01:40.3]} 16... Qa5 {[%clk 0:01:35.4]} 17. Rfd1 {[%clk 0:01:34.4]}
17... Rfd8 {[%clk 0:01:31.2]} 18. Qe4 {[%clk 0:01:24.6]} 18... f5 {[%clk
0:01:18.1]} 19. Qe3 {[%clk 0:01:15.9]} 19... g6 {[%clk 0:01:14.8]} 20. a3 {[%clk
0:01:02.8]} 20... Nxf3+ {[%clk 0:00:59.3]} 21. Qxf3 {[%clk 0:00:51.1]} 21...
Rxd1+ {[%clk 0:00:56.1]} 22. Qxd1 {[%clk 0:00:37]} 22... Bxc3 {[%clk 0:00:53.2]}
23. bxc3 {[%clk 0:00:35.5]} 23... Rxb1 {[%clk 0:00:52.3]} 24. Qxb1 {[%clk
0:00:36.4]} 24... Qxc3 {[%clk 0:00:49.3]} 25. a4 {[%clk 0:00:33.1]} 25... Kg7
{[%clk 0:00:48.2]} 26. g3 {[%clk 0:00:31.6]} 26... h5 {[%clk 0:00:46.1]} 27. h4
{[%clk 0:00:31.3]} 27... f4 {[%clk 0:00:40.8]} 28. Kg2 {[%clk 0:00:30.9]} 28...
fxg3 {[%clk 0:00:35.6]} 29. fxg3 {[%clk 0:00:30.1]} 29... Qc6+ {[%clk
0:00:34.9]} 30. Kh2 {[%clk 0:00:28.6]} 30... Qxa4 {[%clk 0:00:34.5]} 31. Qb2+
{[%clk 0:00:28.7]} 31... Kh7 {[%clk 0:00:34]} 32. Qf6 {[%clk 0:00:28.2]} 32...
Qc2+ {[%clk 0:00:32]} 33. Kg1 {[%clk 0:00:27.4]} 33... Qf5 {[%clk 0:00:25.8]}
34. Qa6 {[%clk 0:00:22.3]} 34... Qf3 {[%clk 0:00:21]} 35. Kh2 {[%clk 0:00:20.3]}
35... Qf2+ {[%clk 0:00:20.3]} 36. Kh3 {[%clk 0:00:20.5]} 36... Qg1 {[%clk
0:00:18.2]} 37. Qb7 {[%clk 0:00:17.9]} 37... Kg7 {[%clk 0:00:15.2]} 38. Qe4
{[%clk 0:00:16]} 38... Qf1+ {[%clk 0:00:14]} 39. Kh2 {[%clk 0:00:15.7]} 39...
Qf6 {[%clk 0:00:13.3]} 40. Qa4 {[%clk 0:00:14.9]} 40... Qb6 {[%clk 0:00:12]} 41.
Kg2 {[%clk 0:00:13.8]} 41... a5 {[%clk 0:00:10.8]} 42. Qa1+ {[%clk 0:00:13.7]}
42... Kh7 {[%clk 0:00:10.3]} 43. Qa2 {[%clk 0:00:12.2]} 43... Qb7+ {[%clk
0:00:09.8]} 44. Kf2 {[%clk 0:00:12]} 44... Qa7+ {[%clk 0:00:09.4]} 45. Kg2
{[%clk 0:00:11.6]} 45... a4 {[%clk 0:00:10.3]} 46. Qa3 {[%clk 0:00:12]} 46...
Qa8+ {[%clk 0:00:09.1]} 47. Kh2 {[%clk 0:00:11.9]} 47... Qc6 {[%clk 0:00:08.9]}
48. Qa2 {[%clk 0:00:11.5]} 48... Kg7 {[%clk 0:00:06.2]} 49. Qb2+ {[%clk
0:00:12]} 49... Kg8 {[%clk 0:00:06.3]} 50. Qb8+ {[%clk 0:00:11.5]} 50... Kh7
{[%clk 0:00:06.2]} 51. Qf4 {[%clk 0:00:10.6]} 51... Qd7 {[%clk 0:00:05.6]} 52.
Qf3 {[%clk 0:00:09]} 52... Qe7 {[%clk 0:00:04.9]} 53. Qa3 {[%clk 0:00:08.7]}
53... Qxa3 {[%clk 0:00:04]} 0-1

[Event "*** Titled Tuesday Blitz"]
[Site "Chess.com"]
[Date "2020.04.07"]
[Round "1"]
[White "SONOFHOLYGOD"]
[Black "willc-h99"]
[Result "1-0"]
[WhiteElo "2584"]
[BlackElo "2235"]
[TimeControl "180+1"]
[EndTime "13:08:11 PDT"]
[Termination "SONOFHOLYGOD won on time"]

1. d4 {[%clk 0:03:00.9]} 1... Nf6 {[%clk 0:03:00]} 2. Nf3 {[%clk 0:02:59.4]}
2... e6 {[%clk 0:03:00.4]} 3. Bf4 {[%clk 0:02:58.1]} 3... b6 {[%clk 0:03:00.4]}
4. e3 {[%clk 0:02:58.3]} 4... Bb7 {[%clk 0:03:00.9]} 5. Nbd2 {[%clk 0:02:58.9]}
5... Be7 {[%clk 0:03:01.2]} 6. Be2 {[%clk 0:02:59.4]} 6... c5 {[%clk 0:02:55.6]}
7. h3 {[%clk 0:02:58.6]} 7... O-O {[%clk 0:02:55.2]} 8. c3 {[%clk 0:02:58.4]}
8... cxd4 {[%clk 0:02:53.7]} 9. exd4 {[%clk 0:02:58.1]} 9... d6 {[%clk
0:02:53.5]} 10. O-O {[%clk 0:02:58.3]} 10... a6 {[%clk 0:02:53.2]} 11. Re1
{[%clk 0:02:54.1]} 11... Nbd7 {[%clk 0:02:53.2]} 12. Bd3 {[%clk 0:02:53.3]}
12... Re8 {[%clk 0:02:50.8]} 13. Ng5 {[%clk 0:02:40.1]} 13... Bf8 {[%clk
0:02:40.3]} 14. Qc2 {[%clk 0:02:31.5]} 14... g6 {[%clk 0:02:37.9]} 15. Nge4
{[%clk 0:02:21.7]} 15... Nxe4 {[%clk 0:02:21]} 16. Nxe4 {[%clk 0:02:22.6]} 16...
e5 {[%clk 0:02:20.8]} 17. dxe5 {[%clk 0:02:12.5]} 17... dxe5 {[%clk 0:02:19.7]}
18. Bg5 {[%clk 0:02:09.1]} 18... f6 {[%clk 0:02:18.4]} 19. Bh4 {[%clk
0:01:40.2]} 19... b5 {[%clk 0:01:30.5]} 20. a4 {[%clk 0:01:35]} 20... Qb6 {[%clk
0:01:29.4]} 21. Rad1 {[%clk 0:01:31.3]} 21... Bg7 {[%clk 0:01:14.8]} 22. axb5
{[%clk 0:01:30.4]} 22... axb5 {[%clk 0:01:10.5]} 23. Qb3+ {[%clk 0:01:30.3]}
23... Kh8 {[%clk 0:01:10.9]} 24. Qxb5 {[%clk 0:01:29.4]} 24... Bxe4 {[%clk
0:01:00.7]} 25. Rxe4 {[%clk 0:01:15.3]} 25... Red8 {[%clk 0:00:48]} 26. Ree1
{[%clk 0:01:05.6]} 26... Rab8 {[%clk 0:00:26.8]} 27. Qxb6 {[%clk 0:01:04.1]}
27... Rxb6 {[%clk 0:00:27.7]} 28. b4 {[%clk 0:01:03.5]} 28... Rc8 {[%clk
0:00:21.5]} 29. Bf1 {[%clk 0:00:55.2]} 29... Nf8 {[%clk 0:00:20.6]} 30. Re3
{[%clk 0:00:49.9]} 30... f5 {[%clk 0:00:20.6]} 31. Be7 {[%clk 0:00:31.4]} 31...
Ne6 {[%clk 0:00:20.3]} 32. c4 {[%clk 0:00:19.9]} 32... e4 {[%clk 0:00:18.7]} 33.
b5 {[%clk 0:00:17.6]} 33... Bd4 {[%clk 0:00:17.5]} 34. Ree1 {[%clk 0:00:17.3]}
34... Kg7 {[%clk 0:00:15.8]} 35. Bb4 {[%clk 0:00:16.6]} 35... Bc5 {[%clk
0:00:10.2]} 36. Bc3+ {[%clk 0:00:15.7]} 36... Kh6 {[%clk 0:00:07.9]} 37. g3
{[%clk 0:00:15.1]} 37... Ng5 {[%clk 0:00:06.8]} 38. Kg2 {[%clk 0:00:14.8]} 38...
Nf3 {[%clk 0:00:06]} 39. Re2 {[%clk 0:00:13.3]} 39... Ra8 {[%clk 0:00:04.7]} 40.
Rb2 {[%clk 0:00:12.7]} 40... Ra3 {[%clk 0:00:04.4]} 41. Bf6 {[%clk 0:00:12.1]}
41... Rxf6 {[%clk 0:00:03.5]} 42. h4 {[%clk 0:00:11.7]} 42... Ne5 {[%clk
0:00:03.6]} 43. Rd5 {[%clk 0:00:11.2]} 43... Nd3 {[%clk 0:00:02.3]} 44. Bxd3
{[%clk 0:00:11.7]} 44... Bxf2 {[%clk 0:00:01.3]} 45. Kxf2 {[%clk 0:00:10.6]}
45... Rxd3 {[%clk 0:00:01.1]} 46. Rxd3 {[%clk 0:00:10]} 46... exd3 {[%clk
0:00:02]} 47. Ke3 {[%clk 0:00:10.6]} 47... Rd6 {[%clk 0:00:02.4]} 48. Kd2 {[%clk
0:00:11]} 48... g5 {[%clk 0:00:02]} 49. hxg5+ {[%clk 0:00:10.8]} 49... Kxg5
{[%clk 0:00:02.9]} 50. b6 {[%clk 0:00:11.5]} 50... Rg6 {[%clk 0:00:02.7]} 51. b7
{[%clk 0:00:11.4]} 1-0

[Event "*** Titled Tuesday Blitz"]
[Site "Chess.com"]
[Date "2020.04.07"]
[Round "1"]
[White "Chessterra87"]
[Black "TastyTablet"]
[Result "1-0"]
[WhiteElo "2297"]
[BlackElo "2599"]
[TimeControl "180+1"]
[EndTime "13:08:13 PDT"]
[Termination "Chessterra87 won by resignation"]

1. e4 {[%clk 0:03:00.9]} 1... e6 {[%clk 0:02:58.1]} 2. d4 {[%clk 0:03:00.5]}
2... d5 {[%clk 0:02:58.3]} 3. e5 {[%clk 0:03:00.9]} 3... c5 {[%clk 0:02:57.9]}
4. c3 {[%clk 0:03:01.3]} 4... Nc6 {[%clk 0:02:57.9]} 5. Nf3 {[%clk 0:03:01.3]}
5... Bd7 {[%clk 0:02:56.1]} 6. a3 {[%clk 0:02:59.1]} 6... c4 {[%clk 0:02:54]} 7.
Nbd2 {[%clk 0:02:56.4]} 7... Na5 {[%clk 0:02:52.2]} 8. Rb1 {[%clk 0:02:55.7]}
8... Qb6 {[%clk 0:02:47.6]} 9. g3 {[%clk 0:02:48]} 9... O-O-O {[%clk 0:02:46.3]}
10. b3 {[%clk 0:02:17.2]} 10... Nxb3 {[%clk 0:02:44.6]} 11. Nxb3 {[%clk
0:02:17]} 11... cxb3 {[%clk 0:02:45.5]} 12. Qxb3 {[%clk 0:02:03]} 12... Qxb3
{[%clk 0:02:38.8]} 13. Rxb3 {[%clk 0:02:02.9]} 13... Ne7 {[%clk 0:02:39.7]} 14.
Bd3 {[%clk 0:02:01.4]} 14... Nc6 {[%clk 0:02:20.8]} 15. Bg5 {[%clk 0:01:52.6]}
15... Re8 {[%clk 0:02:08.8]} 16. Ke2 {[%clk 0:01:31.2]} 16... h6 {[%clk
0:02:00.9]} 17. Bd2 {[%clk 0:01:29]} 17... Na5 {[%clk 0:02:01.4]} 18. Rb2 {[%clk
0:01:27.3]} 18... b6 {[%clk 0:02:01.3]} 19. Ra1 {[%clk 0:01:18.9]} 19... Kb7
{[%clk 0:02:00.5]} 20. a4 {[%clk 0:01:12.6]} 20... Be7 {[%clk 0:01:58]} 21. c4
{[%clk 0:00:47.3]} 21... dxc4 {[%clk 0:01:51]} 22. Bxa5 {[%clk 0:00:43.1]} 22...
cxd3+ {[%clk 0:01:50.2]} 23. Kxd3 {[%clk 0:00:44]} 23... Rc8 {[%clk 0:01:43.4]}
24. Bd2 {[%clk 0:00:43]} 24... Bc6 {[%clk 0:01:40.2]} 25. Ke3 {[%clk 0:00:38.8]}
25... Rhd8 {[%clk 0:01:35.3]} 26. Bb4 {[%clk 0:00:35.9]} 26... Rc7 {[%clk
0:01:05.6]} 27. Bxe7 {[%clk 0:00:35.8]} 27... Rxe7 {[%clk 0:01:06.5]} 28. Nd2
{[%clk 0:00:35.5]} 28... Red7 {[%clk 0:01:06.3]} 29. Nb3 {[%clk 0:00:35.8]}
29... Bd5 {[%clk 0:01:06.1]} 30. Nc5+ {[%clk 0:00:35.7]} 30... Kc6 {[%clk
0:01:06.1]} 31. Nxd7 {[%clk 0:00:36.6]} 31... Rxd7 {[%clk 0:01:07]} 32. a5
{[%clk 0:00:36.9]} 32... b5 {[%clk 0:01:06.8]} 33. Rc1+ {[%clk 0:00:37.1]} 33...
Bc4 {[%clk 0:01:07.3]} 34. Rb4 {[%clk 0:00:30]} 34... f6 {[%clk 0:01:00.6]} 35.
f4 {[%clk 0:00:30.1]} 35... fxe5 {[%clk 0:00:59.7]} 36. fxe5 {[%clk 0:00:31]}
36... Rf7 {[%clk 0:00:59.1]} 37. Rcxc4+ {[%clk 0:00:28.5]} 37... bxc4 {[%clk
0:00:58.7]} 38. Rxc4+ {[%clk 0:00:29.4]} 38... Kd7 {[%clk 0:00:55.8]} 39. Rb4
{[%clk 0:00:28.3]} 39... Kc7 {[%clk 0:00:56.3]} 40. a6 {[%clk 0:00:27.6]} 40...
Kc6 {[%clk 0:00:54.8]} 41. Rb8 {[%clk 0:00:24.3]} 41... g5 {[%clk 0:00:36.8]}
42. Ke4 {[%clk 0:00:24.3]} 42... Rc7 {[%clk 0:00:34.6]} 43. Re8 {[%clk
0:00:23.9]} 43... Kd7 {[%clk 0:00:33.3]} 44. Rh8 {[%clk 0:00:24]} 44... Rc1
{[%clk 0:00:30.2]} 45. Rh7+ {[%clk 0:00:21.3]} 45... Kc6 {[%clk 0:00:30.7]} 46.
Rxa7 {[%clk 0:00:21.5]} 46... Re1+ {[%clk 0:00:30.7]} 47. Kf3 {[%clk 0:00:21.5]}
47... h5 {[%clk 0:00:30.3]} 48. h4 {[%clk 0:00:19.8]} 48... gxh4 {[%clk
0:00:26.9]} 49. gxh4 {[%clk 0:00:20.7]} 49... Rh1 {[%clk 0:00:24.9]} 50. Re7
{[%clk 0:00:21.3]} 50... Kd5 {[%clk 0:00:19.5]} 51. Rd7+ {[%clk 0:00:21.4]}
51... Kc4 {[%clk 0:00:20.2]} 52. a7 {[%clk 0:00:21.4]} 52... Ra1 {[%clk
0:00:20]} 53. Ke4 {[%clk 0:00:21.6]} 53... Re1+ {[%clk 0:00:18.8]} 54. Kf3
{[%clk 0:00:21.9]} 54... Ra1 {[%clk 0:00:18.7]} 55. Ke4 {[%clk 0:00:21.7]} 55...
Re1+ {[%clk 0:00:18.7]} 56. Kf4 {[%clk 0:00:22.2]} 56... Rg1 {[%clk 0:00:16.5]}
57. a8=Q {[%clk 0:00:21.8]} 57... Rg4+ {[%clk 0:00:17.4]} 58. Kf3 {[%clk
0:00:22]} 1-0

[Event "*** Titled Tuesday Blitz"]
[Site "Chess.com"]
[Date "2020.04.07"]
[Round "1"]
[White "grzechu96"]
[Black "Martins-BR"]
[Result "0-1"]
[WhiteElo "2593"]
[BlackElo "2290"]
[TimeControl "180+1"]
[EndTime "13:08:13 PDT"]
[Termination "Martins-BR won by resignation"]

1. e4 {[%clk 0:02:41.2]} 1... c5 {[%clk 0:02:58.3]} 2. Nf3 {[%clk 0:02:41.2]}
2... e6 {[%clk 0:02:58.1]} 3. d4 {[%clk 0:02:41.1]} 3... cxd4 {[%clk 0:02:59]}
4. Nxd4 {[%clk 0:02:42]} 4... Nc6 {[%clk 0:02:59]} 5. Nc3 {[%clk 0:02:41]} 5...
Qc7 {[%clk 0:02:58.3]} 6. g3 {[%clk 0:02:41]} 6... a6 {[%clk 0:02:56.3]} 7. Bg2
{[%clk 0:02:41]} 7... d6 {[%clk 0:02:56]} 8. Nxc6 {[%clk 0:02:40.4]} 8... bxc6
{[%clk 0:02:55.2]} 9. O-O {[%clk 0:02:40.6]} 9... Bd7 {[%clk 0:02:49.4]} 10. b3
{[%clk 0:02:39.5]} 10... Nf6 {[%clk 0:02:43.6]} 11. Bb2 {[%clk 0:02:39.6]} 11...
Be7 {[%clk 0:02:43.1]} 12. Qe2 {[%clk 0:02:39.5]} 12... e5 {[%clk 0:02:41.2]}
13. Nd1 {[%clk 0:02:30.1]} 13... a5 {[%clk 0:02:36.6]} 14. a4 {[%clk 0:02:23.6]}
14... O-O {[%clk 0:02:35.2]} 15. Ne3 {[%clk 0:02:24]} 15... Rfe8 {[%clk
0:02:25]} 16. Rfd1 {[%clk 0:02:23.9]} 16... h6 {[%clk 0:02:18.7]} 17. h3 {[%clk
0:02:17.5]} 17... Bf8 {[%clk 0:02:06]} 18. Rd2 {[%clk 0:02:14.8]} 18... Be6
{[%clk 0:01:58.8]} 19. Rad1 {[%clk 0:02:14.9]} 19... Qc8 {[%clk 0:01:49.7]} 20.
Nc4 {[%clk 0:01:53]} 20... Bxh3 {[%clk 0:01:28.7]} 21. Nb6 {[%clk 0:01:53]}
21... Qe6 {[%clk 0:01:27.5]} 22. Nxa8 {[%clk 0:01:52.2]} 22... Rxa8 {[%clk
0:01:27.6]} 23. Bc3 {[%clk 0:00:44.7]} 23... h5 {[%clk 0:01:25.6]} 24. Rd3
{[%clk 0:00:35.5]} 24... c5 {[%clk 0:01:15.3]} 25. Bxh3 {[%clk 0:00:23.8]} 25...
Qxh3 {[%clk 0:01:14.1]} 26. Rf3 {[%clk 0:00:20.5]} 26... Ng4 {[%clk 0:01:08.3]}
27. Qc4 {[%clk 0:00:13.6]} 27... Ra7 {[%clk 0:00:58.7]} 28. Bxa5 {[%clk
0:00:07.4]} 28... h4 {[%clk 0:00:48.3]} 29. Bd8 {[%clk 0:00:03.4]} 29... Qh2+
{[%clk 0:00:46.1]} 30. Kf1 {[%clk 0:00:03.2]} 30... h3 {[%clk 0:00:46]} 31. Bb6
{[%clk 0:00:01.6]} 31... Rb7 {[%clk 0:00:43.5]} 32. a5 {[%clk 0:00:02.2]} 32...
Qg2+ {[%clk 0:00:42.1]} 33. Ke2 {[%clk 0:00:02.7]} 33... h2 {[%clk 0:00:42.1]}
34. a6 {[%clk 0:00:03.3]} 34... Rd7 {[%clk 0:00:27.4]} 35. a7 {[%clk 0:00:03.3]}
35... d5 {[%clk 0:00:25.3]} 36. exd5 {[%clk 0:00:03.5]} 36... e4 {[%clk
0:00:17.1]} 37. Qxe4 {[%clk 0:00:03.6]} 37... Nxf2 {[%clk 0:00:15.3]} 38. Rxf2
{[%clk 0:00:01.2]} 38... Qxe4+ {[%clk 0:00:14.4]} 39. Kd2 {[%clk 0:00:01.7]}
39... h1=Q {[%clk 0:00:14.4]} 40. Rxh1 {[%clk 0:00:01.4]} 40... Qxh1 {[%clk
0:00:14.1]} 41. a8=Q {[%clk 0:00:01.8]} 41... Rxd5+ {[%clk 0:00:10.1]} 42. Kc3
{[%clk 0:00:02.3]} 42... Rd3+ {[%clk 0:00:09.4]} 43. cxd3 {[%clk 0:00:02.9]}
43... Qxa8 {[%clk 0:00:08.4]} 44. Rf5 {[%clk 0:00:03.1]} 44... Qc8 {[%clk
0:00:07.5]} 45. Rd5 {[%clk 0:00:03]} 45... Qc6 {[%clk 0:00:07.4]} 46. Rd8 {[%clk
0:00:03.4]} 46... Qxb6 {[%clk 0:00:07.4]} 47. Rc8 {[%clk 0:00:04.3]} 47... Qb4+
{[%clk 0:00:07.4]} 48. Kc2 {[%clk 0:00:04.9]} 48... Qg4 {[%clk 0:00:07.3]} 49.
Rc6 {[%clk 0:00:05]} 49... Qxg3 {[%clk 0:00:06.9]} 50. Kc3 {[%clk 0:00:05.1]}
50... Qf2 {[%clk 0:00:06.7]} 51. Rc7 {[%clk 0:00:05.1]} 51... Qd4+ {[%clk
0:00:07.2]} 52. Kc2 {[%clk 0:00:05.1]} 52... g5 {[%clk 0:00:07.4]} 0-1

[Event "*** Titled Tuesday Blitz"]
[Site "Chess.com"]
[Date "2020.04.07"]
[Round "1"]
[White "csati17"]
[Black "mishanick"]
[Result "0-1"]
[WhiteElo "2489"]
[BlackElo "3021"]
[TimeControl "180+1"]
[EndTime "13:08:14 PDT"]
[Termination "mishanick won by resignation"]

1. c4 {[%clk 0:03:00.9]} 1... e5 {[%clk 0:02:57.4]} 2. g3 {[%clk 0:03:00.6]}
2... Nf6 {[%clk 0:02:55.2]} 3. Bg2 {[%clk 0:03:00.5]} 3... Nc6 {[%clk
0:02:55.9]} 4. Nc3 {[%clk 0:03:00.2]} 4... Bb4 {[%clk 0:02:55.3]} 5. Nd5 {[%clk
0:02:59.9]} 5... O-O {[%clk 0:02:54.5]} 6. Nxb4 {[%clk 0:02:58.6]} 6... Nxb4
{[%clk 0:02:54.2]} 7. d3 {[%clk 0:02:57.9]} 7... h6 {[%clk 0:02:51.6]} 8. Nf3
{[%clk 0:02:57.3]} 8... Re8 {[%clk 0:02:50.2]} 9. O-O {[%clk 0:02:55.2]} 9... d6
{[%clk 0:02:46.8]} 10. a3 {[%clk 0:02:43]} 10... Nc6 {[%clk 0:02:46.9]} 11. b4
{[%clk 0:02:43.5]} 11... e4 {[%clk 0:02:45]} 12. dxe4 {[%clk 0:02:43]} 12...
Nxe4 {[%clk 0:02:45.9]} 13. Bb2 {[%clk 0:02:42.8]} 13... Bf5 {[%clk 0:02:44.5]}
14. Nd4 {[%clk 0:02:39.4]} 14... Bd7 {[%clk 0:02:19.3]} 15. Nxc6 {[%clk
0:02:25.6]} 15... bxc6 {[%clk 0:02:02.9]} 16. Qd4 {[%clk 0:02:18.4]} 16... Nf6
{[%clk 0:02:00.5]} 17. e3 {[%clk 0:02:14]} 17... Qe7 {[%clk 0:01:54.8]} 18. Qh4
{[%clk 0:02:02.8]} 18... Ne4 {[%clk 0:01:49.2]} 19. Qxe7 {[%clk 0:01:23.5]}
19... Rxe7 {[%clk 0:01:50.1]} 20. Rfd1 {[%clk 0:01:22.5]} 20... Rb8 {[%clk
0:01:39.6]} 21. Rab1 {[%clk 0:01:15.7]} 21... Bf5 {[%clk 0:01:34.2]} 22. Ba1
{[%clk 0:01:06.7]} 22... Ng5 {[%clk 0:01:11.9]} 23. Rbc1 {[%clk 0:01:03.1]}
23... Be4 {[%clk 0:01:11.7]} 24. Bxe4 {[%clk 0:01:00]} 24... Nxe4 {[%clk
0:01:12.6]} 25. f3 {[%clk 0:00:58.9]} 25... Ng5 {[%clk 0:01:12.6]} 26. Kf2
{[%clk 0:00:58.8]} 26... f5 {[%clk 0:01:10.7]} 27. h4 {[%clk 0:00:52.9]} 27...
Ne6 {[%clk 0:01:10]} 28. h5 {[%clk 0:00:53.3]} 28... Kf7 {[%clk 0:01:09.7]} 29.
b5 {[%clk 0:00:46.3]} 29... cxb5 {[%clk 0:01:08.5]} 30. Rd5 {[%clk 0:00:46.4]}
30... Nc5 {[%clk 0:01:01.9]} 31. cxb5 {[%clk 0:00:40.7]} 31... Rxb5 {[%clk
0:00:59.4]} 32. Rc2 {[%clk 0:00:15.4]} 32... Ke6 {[%clk 0:00:56.2]} 33. Rd1
{[%clk 0:00:15]} 33... a5 {[%clk 0:00:46.7]} 34. Bd4 {[%clk 0:00:15.1]} 34...
Nb3 {[%clk 0:00:45.4]} 35. Bc3 {[%clk 0:00:14.4]} 35... a4 {[%clk 0:00:45.2]}
36. Re2 {[%clk 0:00:13.9]} 36... c5 {[%clk 0:00:45.1]} 37. e4 {[%clk 0:00:13.7]}
37... Kf7 {[%clk 0:00:39.5]} 38. exf5 {[%clk 0:00:13.5]} 38... Rxe2+ {[%clk
0:00:38.1]} 39. Kxe2 {[%clk 0:00:14.4]} 39... Rb6 {[%clk 0:00:38.3]} 40. g4
{[%clk 0:00:14.3]} 40... Rc6 {[%clk 0:00:35.9]} 41. f4 {[%clk 0:00:13.5]} 41...
c4 {[%clk 0:00:32.7]} 42. g5 {[%clk 0:00:13.7]} 42... Nc5 {[%clk 0:00:32.8]} 43.
g6+ {[%clk 0:00:12.2]} 43... Kf8 {[%clk 0:00:33.1]} 44. Kf3 {[%clk 0:00:11.6]}
44... Nd7 {[%clk 0:00:32.2]} 45. Rb1 {[%clk 0:00:10.9]} 45... d5 {[%clk
0:00:16.7]} 46. Rb7 {[%clk 0:00:10.4]} 46... Ke8 {[%clk 0:00:13.3]} 47. Bxg7
{[%clk 0:00:10.1]} 47... c3 {[%clk 0:00:13.8]} 48. f6 {[%clk 0:00:10.4]} 48...
c2 {[%clk 0:00:12.4]} 49. f7+ {[%clk 0:00:10.4]} 49... Kd8 {[%clk 0:00:13]} 50.
Rxd7+ {[%clk 0:00:10]} 50... Kxd7 {[%clk 0:00:13.2]} 51. f8=Q {[%clk 0:00:10.9]}
51... c1=Q {[%clk 0:00:12.9]} 52. Qf7+ {[%clk 0:00:11.2]} 52... Kc8 {[%clk
0:00:13]} 53. Qf8+ {[%clk 0:00:09.2]} 53... Kb7 {[%clk 0:00:12.9]} 54. Qb4+
{[%clk 0:00:09.4]} 54... Rb6 {[%clk 0:00:13.1]} 55. Qxa4 {[%clk 0:00:06.8]}
55... Qf1+ {[%clk 0:00:12.2]} 56. Kg4 {[%clk 0:00:06.4]} 56... Qg2+ {[%clk
0:00:11.4]} 57. Kf5 {[%clk 0:00:06.8]} 57... Qh3+ {[%clk 0:00:10.9]} 58. Ke5
{[%clk 0:00:07.3]} 58... Qe6+ {[%clk 0:00:10.6]} 59. Kd4 {[%clk 0:00:07]} 59...
Qe4+ {[%clk 0:00:11.5]} 60. Kc5 {[%clk 0:00:07.4]} 60... Qxa4 {[%clk 0:00:11.8]}
0-1